Cogmind - Beta 16 @@@ ROGUE MODE // 2025.11.06 @ 01:15:18 Player: Naughtyusername Result: Destroyed by Enhanced Grunt with Neutron Cannon Performance ------------- Evolutions (3) 1500 Regions Visited (11) 2200 Robots Destroyed (185) 925 Value Destroyed (5962) 5962 Prototype IDs (40) 800 Alien Tech Used (0) 0 Bonus (902) 902 TOTAL SCORE: 12289 Bonus ------- High Alert Combat Kills 968 Follower Combat Kills 850 Met Data Miner 300 Friendly Fire -1216 Cogmind --------- Core Integrity 0/700 Matter 280/300 Energy 1193/1200 System Corruption 2% Temperature Warm (112) Movement Walking (260) Ox2 Location -7/Data Miner Parts ------- > --- POWER (2) -------- Hybrid Deuterium Engine F-cell Engine > --- PROPULSION (4) --- Enhanced Flexi-carbon Leg Enhanced Flexi-carbon Leg Gravmag Array > --- UTILITY (5) ------ Advanced Heat Sink High-capacity Storage Unit Core Analyzer Armor Integrity Analyzer Graphene Brace > --- WEAPON (2) ------- Neutron Cannon Neutron Cannon > --- INVENTORY (20) --- Cryofiber Web Improved Heat Sink Advanced Heat Sink IFF Parser Active Cooling Armor Experimental Thermal Shield System Mapper Ghost Barrier Quantum Router Field Laser Thermic Laser Gauss Rifle Rocket Array Rocket Array Rocket Array Mini Smartbomb Launcher Remote Datajack Kinetic Spear Peak State ------------ > --- POWER ------------ Hybrid Deuterium Engine F-cell Engine > --- PROPULSION ------- Enhanced Flexi-carbon Leg Enhanced Flexi-carbon Leg Gravmag Array > --- UTILITY ---------- Advanced Heat Sink High-capacity Storage Unit Core Analyzer Armor Integrity Analyzer Graphene Brace > --- WEAPON ----------- Neutron Cannon Neutron Cannon > --- INVENTORY -------- Cryofiber Web Improved Heat Sink Advanced Heat Sink IFF Parser Active Cooling Armor Experimental Thermal Shield System Mapper Ghost Barrier Quantum Router Field Laser Thermic Laser Gauss Rifle Rocket Array Rocket Array Rocket Array Mini Smartbomb Launcher Remote Datajack Kinetic Spear [Rating: 81] Favorites ----------- Power Hybrid Deuterium Engine Engine Hybrid Deuterium Engine Power Core Enhanced Nuclear Core Reactor Antimatter Reactor Propulsion Armored Treads Treads Armored Treads Leg Carbon-fiber Leg Wheel Armored Wheel Hover Unit Gravmag Array Flight Unit Improved VTOL Module Utility Core Analyzer Device Cryofiber Web Storage High-capacity Storage Unit Processor Core Analyzer Protection Core Shielding Weapon Spread Laser Energy Gun Spread Laser Energy Cannon Advanced Plasma Cannon Ballistic Gun Assault Rifle Launcher Mini Smartbomb Launcher Special Weapon Mining Laser Impact Weapon Hammer Piercing Weapon Kinetic Spear Build | -11 -10 -10 -9 -9 -8 -7 -7 -7 -7 -7 -7 ------- Run | Yrd Mat Min Mat Min Mat Fac Was Fac Low Low Dat Slots Evolved 6 | . . . 2 . 2 2 . . . . . Power 1 | . . . . . . 1 . . . . . Propulsion 2 | . . . 1 . 1 . . . . . . Utility 3 | . . . 1 . 1 1 . . . . . Weapon . | . . . . . . . . . . . . Parts Attached 130 | 8 16 . 27 3 12 7 9 26 6 5 11 Power 18 | 1 2 . 1 . 2 1 2 7 1 . 1 Engine 14 | 1 2 . 1 . 2 1 . 5 1 . 1 Core 2 | . . . . . . . . 2 . . . Reactor 2 | . . . . . . . 2 . . . . Propulsion 39 | 2 4 . 9 2 6 1 3 5 3 1 3 Treads 23 | 2 2 . 5 . 4 1 3 4 1 1 . Leg 4 | . . . . 1 . . . . 1 . 2 Wheel 7 | . 2 . 4 1 . . . . . . . Hover 2 | . . . . . 1 . . . . . 1 Flight 3 | . . . . . 1 . . 1 1 . . Utility 34 | 2 4 . 6 1 3 2 1 9 1 2 3 Device 13 | 1 . . 1 1 2 1 1 4 1 . 1 Storage 5 | 1 3 . . . . . . 1 . . . Processor 4 | . . . . . 1 . . 1 . 1 1 Hackware . | . . . . . . . . . . . . Protection 12 | . 1 . 5 . . 1 . 3 . 1 1 Artifact . | . . . . . . . . . . . . Weapon 39 | 3 6 . 11 . 1 3 3 5 1 2 4 Energy Gun 15 | 3 . . 4 . . 1 1 2 1 . 3 Energy Cannon 3 | . . . . . . . 1 . . 1 1 Ballistic Gun 9 | . 4 . 4 . . 1 . . . . . Ballistic Cannon . | . . . . . . . . . . . . Launcher 7 | . 1 . 2 . 1 . 1 2 . . . Special Weapon 3 | . . . 1 . . 1 . . . 1 . Impact Weapon 1 | . 1 . . . . . . . . . . Slashing Weapon . | . . . . . . . . . . . . Piercing Weapon 1 | . . . . . . . . 1 . . . Special Melee Weapon . | . . . . . . . . . . . . Unidentified Prototypes 13 | . . . 1 . 1 1 1 6 1 1 1 Parts Lost 41 | . 6 . 9 1 1 . . 8 5 1 10 Power 3 | . 1 . . . . . . 1 . . 1 Propulsion 14 | . 2 . 3 1 . . . 1 3 1 3 Utility 13 | . 1 . 4 . 1 . . 3 1 . 3 Weapon 11 | . 2 . 2 . . . . 3 1 . 3 Highest Loss Streak 7 | . 3 . 3 1 1 . . 4 2 1 7 To Critical Strikes 2 | . . . . . . . . 2 . . . Average Backups 18 | . 11 16 19 20 19 19 20 21 21 19 17 Power 1 | . 2 2 2 2 2 2 2 2 1 1 . Propulsion 2 | . 1 4 2 2 4 3 3 2 1 . . Utility 7 | . 2 5 7 6 4 5 8 10 10 7 6 Weapon 6 | . 4 4 6 8 7 7 6 7 8 9 9 Tool/Special . | . . . . . . . . . . . . Unused Backups 39 | . 8 . 8 2 6 . 1 5 . 2 7 Power 4 | . 1 . 2 . . . 1 . . . . Propulsion 9 | . 2 . 3 2 . . . 2 . . . Utility 18 | . 2 . 2 . 4 . . 3 . 1 6 Weapon 7 | . 3 . 1 . 1 . . . . 1 1 Tool/Special 1 | . . . . . 1 . . . . . . Average Slot Usage (%) 95 | . 99 100 97 97 99 99 89 89 96 91 84 Engine 12 | . 13 14 11 11 9 15 8 10 15 15 15 Treads 20 | . 21 28 10 7 35 30 19 20 23 14 6 Leg 1 | . . . . 3 . . . . 3 7 10 Wheel 4 | . 6 . 21 19 . . . . . . . Device 13 | . 3 . 4 2 17 15 17 17 21 22 18 Storage 9 | . 14 14 11 11 9 7 7 7 7 7 7 Processor 5 | . . . . . 8 7 7 8 7 7 11 Protection 6 | . 10 14 17 19 . 6 4 3 1 . . Energy Gun 12 | . 15 . 4 22 17 14 13 14 14 12 9 Ballistic Gun 5 | . 11 27 16 . . . . . . . . Peak Build Rating 81 | 7 10 10 20 21 33 43 70 64 63 60 81 Average Rating 38 | 5 8 9 17 18 31 40 56 58 58 58 59 On Entrance 31 | . 7 9 9 18 21 33 42 62 60 56 58 Avg Prop Armor Cover (%) 7 | . 13 . 7 8 8 7 . . 4 5 6 Naked Turns . | . . . . . . . . . . . . Heaviest Build 125 | 14 91 52 64 60 60 68 81 125 116 111 70 Greatest Support 140 | 40 40 40 60 24 80 80 140 140 88 48 56 Greatest Overweight (x) 9 | . 9 1 5 4 2 1 . 1 2 2 4 Average Overweight (x) 1 | . 2 1 1 2 . . . . 1 1 1 Largest Inventory Capacity 25 | 8 25 20 20 20 20 20 20 25 25 25 20 Average Capacity 21 | 7 18 20 20 20 20 20 20 22 25 21 20 Most Carried 25 | 3 16 16 20 20 20 20 20 25 25 25 20 Average Carried 19 | 1 11 16 19 19 19 19 19 21 23 21 19 Final Capacity 25 | 8 20 20 20 20 20 20 20 25 25 20 20 Final Carried 24 | 3 16 16 20 20 20 20 20 24 22 20 20 Class Distribution -------------------- 91% | Mutant 8% | Scavenger-Mutant Dominant Class ---------------- Mutant | -10/Materials Mutant | -10/Mines Mutant | -9/Materials Mutant | -9/Mines Mutant | -8/Materials Mutant | -7/Factory Mutant | -7/Waste Mutant | -7/Factory Mutant | -7/Lower Caves Mutant | -7/Lower Caves Scavenger-Mutant | -7/Data Miner Resources | -11 -10 -10 -9 -9 -8 -7 -7 -7 -7 -7 -7 ----------- Run | Yrd Mat Min Mat Min Mat Fac Was Fac Low Low Dat Matter Collected 3589 | 280 286 72 1001 94 240 76 198 615 206 344 177 Remotely . | . . . . . . . . . . . . Salvage Created 6666 | 89 584 99 1892 82 990 181 377 1185 295 600 292 Parts 363 | 6 37 13 122 7 63 9 6 54 15 20 11 Haulers Intercepted 16 | . . . 5 . 5 1 . 5 . . . Recyclers Shooed 4 | . . . 1 . 1 1 . 1 . . . Parts Field Recycled . | . . . . . . . . . . . . Retrieved Matter . | . . . . . . . . . . . . Parts Self-Destructed 33 | . . . . . . . . . 14 19 . Prevented . | . . . . . . . . . . . . Parts Restored . | . . . . . . . . . . . . Kills | -11 -10 -10 -9 -9 -8 -7 -7 -7 -7 -7 -7 ------- Run | Yrd Mat Min Mat Min Mat Fac Was Fac Low Low Dat Combat Hostiles Destroyed 136 | . 17 6 38 2 19 4 . 27 8 12 3 Melee 3 | . . . . . . . . . . 2 1 Guns 100 | . 14 3 32 2 17 4 . 18 7 3 . AOE 29 | . 3 3 6 . 2 . . 8 . 7 . Classes Destroyed 19 | 2 5 . 6 1 2 . . 2 . 1 . Worker 8 | . 1 . 3 1 1 . . 2 . . . Builder 5 | . 1 . . 1 2 . . 1 . . . Tunneler 3 | 1 . . . 1 1 . . . . . . Hauler 16 | . . . 5 . 5 1 . 5 . . . Recycler 2 | 1 . . . . . . . 1 . . . Mechanic 1 | . . . . . 1 . . . . . . Operator 3 | . . . 1 . 2 . . . . . . Watcher 5 | . 2 . 1 . 1 . . 1 . . . Swarmer 23 | . 6 6 3 . . 1 . . 3 4 . Grunt 59 | . 11 . 23 . 8 3 . 7 4 3 . Brawler 3 | . . . 1 . . . . . . 2 . Duelist 3 | . . . 1 . 1 . . . . 1 . Protector 2 | . . . 1 . . . . 1 . . . Sentry 21 | . . . 9 . 7 . . 3 . 2 . Demolisher 2 | . . . . 2 . . . . . . . Specialist 6 | . . . . . . . . 6 . . . Hunter 10 | . . . . . 3 . . 7 . . . Programmer 4 | . . . . . . . . 3 1 . . Enhanced Grunt 3 | . . . . . . . . . . . 3 Samaritan 6 | . . . . . . . . . . 6 . Wasp 1 | . . . . . . . 1 . . . . Martyr 4 | . . . . . . . 4 . . . . Best Kill Streak 8 | 1 4 3 7 2 6 2 . 8 3 7 2 Combat Bots Only 7 | . 4 3 6 2 3 2 . 6 3 7 2 Max Kills in Single Turn 6 | 1 3 2 5 1 2 1 1 6 1 2 1 Gunslinging . | . . . . . . . . . . . . Exploded 5 | . 3 2 5 . 2 . . 5 . 2 . Melee 1 | . . . . . . . . . . 1 1 Uniques/NPCs Destroyed 1 | . . . . . . . . . . . 1 Data Miner (-7/Data Miner) Combat | -11 -10 -10 -9 -9 -8 -7 -7 -7 -7 -7 -7 -------- Run | Yrd Mat Min Mat Min Mat Fac Was Fac Low Low Dat Hostile Shots Fired 724 | . 97 22 166 5 64 16 . 254 38 18 44 Missed 180 | . 21 6 38 . 17 4 . 65 11 6 12 Hits 544 | . 76 16 128 5 47 12 . 189 27 12 32 Melee 6 | . . . 3 . 1 . . . . 2 . Projectile 538 | . 76 16 125 5 46 12 . 189 27 10 32 AOE 7 | . . . . 5 . . . 2 . . . Critical Strikes 14 | . . 1 . . 2 . . 9 1 1 . Actively Blocked 2 | . . . . . . . . 2 . . . Part Disruptions 4 | . . . . . . . . . . . 4 Damage Taken 8949 | . 777 123 1720 195 675 183 . 3071 440 285 1480 Core 1169 | . 134 19 173 52 74 . . 257 64 12 384 Absorbed by Shields . | . . . . . . . . . . . . Redirected to Shielding 44 | . 22 3 8 11 . . . . . . . Regen/Repaired (Parts) 276 | . . . . . . . 191 85 . . . Core Remaining (%) 66 | 100 . 38 . 43 86 . . . . . . Volleys Fired 468 | 11 54 8 133 9 59 10 20 90 19 26 29 Largest 2 | 2 2 2 2 2 2 2 2 2 2 2 2 Hottest 180 | 90 90 40 100 130 130 130 130 145 155 155 180 Shots Fired 877 | 21 105 14 257 18 116 19 40 164 34 45 44 Gun 821 | 21 103 12 250 18 110 18 40 145 30 37 37 Cannon 28 | . . . . . . . . 14 4 3 7 Launcher 23 | . 2 2 3 . 6 . . 5 . 5 . Special 5 | . . . 4 . . 1 . . . . . Kinetic 254 | . 42 12 200 . . . . . . . . Thermal 592 | 21 61 . 47 18 110 18 40 159 34 40 44 Explosive 14 | . . . 1 . 3 . . 5 . 5 . Electromagnetic 16 | . 2 2 9 . 3 . . . . . . Robot Hit Streak 28 | 4 10 3 16 8 27 9 11 28 11 21 19 Robot Miss Streak 7 | 3 3 4 5 5 6 5 5 7 6 2 2 Penetration Max . | . . . . . . . . . . . . Secondary Targets 10 | . 3 . 2 . 1 . . 1 2 1 . Max Gunslinging Chain 1 | . 1 . 1 . 1 . . 1 1 1 . Shots Hit Robots 647 | 11 66 6 167 16 100 17 36 137 21 37 33 Core Hits 760 | 3 29 7 77 24 189 25 93 239 17 39 18 Critical Kills . | . . . . . . . . . . . . Critical Parts Destroyed 2 | . . . 2 . . . . . . . . Critical Strikes 9 | . 2 . 4 . . . . . 1 1 1 Burn 5 | . 2 . 1 . . . . . 1 . 1 Destroy 3 | . . . 3 . . . . . . . . Impale 1 | . . . . . . . . . . 1 . Melee Attacks 30 | . 3 . . . . . . . . 9 18 Impact 3 | . 3 . . . . . . . . . . Slashing . | . . . . . . . . . . . . Piercing 27 | . . . . . . . . . . 9 18 Sneak Attacks 9 | . . . . . . . . . . 8 1 Combat Hostiles . | . . . . . . . . . . . . Follow-up Attacks . | . . . . . . . . . . . . Damage Inflicted 14368 | 139 933 162 2878 191 1807 267 808 3632 486 2342 723 Guns 10224 | 139 844 87 2514 191 1535 252 808 2350 486 725 293 Cannons 185 | . . . . . . . . 32 . . 153 Explosions 2949 | . 68 65 358 . 236 . . 1227 . 995 . Melee 899 | . . . . . . . . . . 622 277 Ramming 111 | . 21 10 6 . 36 15 . 23 . . . Kinetic 2497 | . 369 87 2041 . . . . . . . . Thermal 8194 | 139 475 . 474 191 1535 252 808 2663 486 725 446 Explosive 2283 | . . . 198 . 144 . . 946 . 995 . Electromagnetic 384 | . 68 65 159 . 92 . . . . . . Impact . | . . . . . . . . . . . . Slashing . | . . . . . . . . . . . . Piercing 899 | . . . . . . . . . . 622 277 Highest Corruption 6 | . . . 6 6 . . . 2 2 2 2 Average Corruption 2 | . . . 3 6 . . . 1 2 2 2 Corruption Purged . | . . . . . . . . . . . . Corruption Blocked . | . . . . . . . . . . . . Effects 112 | . . . 18 14 . . . 16 26 32 6 Message Errors 40 | . . . 5 7 . . . 7 9 10 2 Matter Fused 27 | . . . 2 3 . . . 6 6 8 2 Heat Flow Errors 11 | . . . . 2 . . . 3 4 2 . Energy Discharges 15 | . . . 6 . . . . . 3 6 . Parts Rejected 2 | . . . 1 . . . . . . . 1 Parts Fused 1 | . . . 1 . . . . . . . . Data Loss (minor) 10 | . . . 3 2 . . . . 3 2 . Data Loss (major) 2 | . . . . . . . . . . 1 1 Misfires 2 | . . . . . . . . . . 2 . Alerts 2 | . . . . . . . . . 1 1 . Overload Shots . | . . . . . . . . . . . . Overflow Damage 233 | . . . . . . . . 73 . 160 . Projectiles . | . . . . . . . . . . . . Explosions 103 | . . . . . . . . 73 . 30 . Melee 130 | . . . . . . . . . . 130 . Knockbacks 2 | . . 2 . . . . . . . . . Impact 2 | . . 2 . . . . . . . . . Kinetic . | . . . . . . . . . . . . Secondary . | . . . . . . . . . . . . Self-Inflicted Damage 166 | . . . 9 . . . . 157 . . . Shots 3 | . . . 1 . . . . 2 . . . Rammed 15 | . 3 2 1 . 5 1 . 3 . . . Targets Rammed 20 | . 5 2 1 . 7 1 . 4 . . . Kicked . | . . . . . . . . . . . . Crushed 5 | . 2 . . . 2 . . 1 . . . Highest Temperature 396 | 180 395 . 210 396 93 . . 30 131 107 168 Average Temperature 88 | 82 131 . 61 123 37 . . 21 62 76 77 Received Heat Transfer 1911 | . 360 . 654 . 198 90 . 438 117 54 . Effects 5 | . 2 . . 3 . . . . . . . Shutdowns 2 | . 1 . . 1 . . . . . . . Energy Bleed 2 | . 1 . . 1 . . . . . . . Matter Decay 1 | . . . . 1 . . . . . . . Siege Activations . | . . . . . . . . . . . . Martial Activations . | . . . . . . . . . . . . Shielding Activations . | . . . . . . . . . . . . Robots Disrupted . | . . . . . . . . . . . . Combat Hostiles . | . . . . . . . . . . . . Robots Corrupted . | . . . . . . . . . . . . Combat Hostiles . | . . . . . . . . . . . . Parts Fried . | . . . . . . . . . . . . Impact Corruptions . | . . . . . . . . . . . . Robots Melted 4 | . . . . . . . . 1 1 . 2 Combat Hostiles 4 | . . . . . . . . 1 1 . 2 Parts Melted 21 | . 6 . 1 . 1 . . 5 1 1 6 Heat Transferred 13056 | 360 1291 . 975 240 1910 325 1025 3270 1045 1494 1121 Parts Sabotaged . | . . . . . . . . . . . . Parts Stolen . | . . . . . . . . . . . . Parts Stripped . | . . . . . . . . . . . . Power Chain Reactions 2 | . . . 2 . . . . . . . . Alert | -11 -10 -10 -9 -9 -8 -7 -7 -7 -7 -7 -7 ------- Run | Yrd Mat Min Mat Min Mat Fac Was Fac Low Low Dat Maximum Alert Level 4 | . 1 . 2 1 1 . . 4 . . . Low Security (%) 62 | 100 98 100 33 90 67 100 100 12 . . . Level 1 13 | . 1 . 41 9 32 . . 4 . . . Level 2 12 | . . . 24 . . . . 34 . . . Level 3 3 | . . . . . . . . 14 . . . Level 4 8 | . . . . . . . . 33 . . . Level 5 . | . . . . . . . . . . . . High Security . | . . . . . . . . . . . . Max Security . | . . . . . . . . . . . . Peak Influence 1425 | 5 203 127 592 226 256 104 . 1425 . . . Initial 221 | . . 57 . 221 . 87 . . . . . Average 273 | . 97 20 280 87 130 26 . 764 . . . Influence Increases 5613 | 10 589 140 1217 68 703 126 . 2265 220 255 20 Destroy 0b10 Robot/C 3180 | . 340 120 740 40 380 80 . 1060 160 240 20 Destroy 0b10 Robot/NC 240 | 10 20 . 55 15 65 5 . 65 . 5 . Destroy Leader 734 | . 64 20 202 10 132 22 . 244 30 10 . Allied During Kill 581 | . . . . 3 . . . 578 . . . Successful Hack 196 | . 27 . 35 . 13 19 . 102 . . . Select Force Hacks 180 | . 60 . 60 . 60 . . . . . . Disable Machine 90 | . . . 15 . . . . 75 . . . Destroy Structure 127 | . 3 . 20 . 23 . . 81 . . . Lose Combat Pursuer 285 | . 75 . 90 . 30 . . 60 30 . . Influence Decreases 5613 | 10 442 287 648 637 510 319 . 846 1156 582 176 Entered New Map 1319 | . . 90 . 348 . 106 . . 526 93 156 Time Decay 3754 | 10 382 197 558 279 500 213 . 536 580 479 20 Lost Part 310 | . 60 . 90 10 10 . . 80 50 10 . Lost Ally 230 | . . . . . . . . 230 . . . Squads Dispatched 51 | . 4 . 6 . 12 6 . 22 . 1 . Investigation 16 | . 3 . 4 . 4 2 . 3 . . . Extermination 6 | . . . . . . 1 . 5 . . . Reinforcement 14 | . 1 . 1 . 5 . . 7 . . . Assault 6 | . . . 1 . 2 . . 2 . 1 . Garrison 9 | . . . . . 1 3 . 5 . . . Intercept . | . . . . . . . . . . . . Searches Triggered . | . . . . . . . . . . . . Construction Impeded 1 | . . . . . 1 . . . . . . Haulers Reinforced 2 | . . . . . . . . 2 . . . Active Scanning Responses . | . . . . . . . . . . . . Cargo Convoy Interrupts 1 | . . . . . . . . 1 . . . Stealth | -11 -10 -10 -9 -9 -8 -7 -7 -7 -7 -7 -7 --------- Run | Yrd Mat Min Mat Min Mat Fac Was Fac Low Low Dat Distress Signals 16 | . 4 . 4 . 7 . . 1 . . . Communications Jammed . | . . . . . . . . . . . . Distress Signals . | . . . . . . . . . . . . Times Spotted 219 | . 28 6 60 2 37 8 . 56 10 8 4 Peak Tracking Total 7 | . 5 3 6 1 6 3 . 6 4 7 2 Tactical Retreats 13 | . 3 . 5 . 2 . . 2 1 . . Traps | -11 -10 -10 -9 -9 -8 -7 -7 -7 -7 -7 -7 ------- Run | Yrd Mat Min Mat Min Mat Fac Was Fac Low Low Dat Traps Triggered 15 | . . . 7 1 3 3 . 1 . . . Indirectly 1 | . . . . . 1 . . . . . . Trap Hack Attempts . | . . . . . . . . . . . . Triggered . | . . . . . . . . . . . . Disarmed . | . . . . . . . . . . . . Reprogrammed . | . . . . . . . . . . . . Reused . | . . . . . . . . . . . . Traps Extracted . | . . . . . . . . . . . . Installed 4 | . . . . 4 . . . . . . . Triggered . | . . . . . . . . . . . . Machines | -11 -10 -10 -9 -9 -8 -7 -7 -7 -7 -7 -7 ---------- Run | Yrd Mat Min Mat Min Mat Fac Was Fac Low Low Dat Machines Disabled 9 | . . . 1 . . . . 5 . 2 1 Max in Single Turn 5 | . . . 1 . . . . 5 . 2 1 Garrison Access 1 | . . . . . 1 . . . . . . Machines Repaired . | . . . . . . . . . . . . Machines Dismantled . | . . . . . . . . . . . . Machines Sabotaged . | . . . . . . . . . . . . Overloaded Fab Kills . | . . . . . . . . . . . . Hacking | -11 -10 -10 -9 -9 -8 -7 -7 -7 -7 -7 -7 --------- Run | Yrd Mat Min Mat Min Mat Fac Was Fac Low Low Dat Machines Accessed 64 | . 8 . 14 1 12 8 . 15 1 1 4 Terminals 39 | . 6 . 10 . 8 7 . 8 . . . Fabricators 2 | . . . . . . . . 2 . . . Repair Stations 1 | . . . . . . . . 1 . . . Recycling Units 9 | . 2 . 2 . 2 1 . 2 . . . Scanalyzers 5 | . . . 2 . 2 . . 1 . . . Garrison Access 1 | . . . . . . . . 1 . . . Total Hacks 197 | . 27 . 56 1 32 17 . 35 1 1 27 Successful 122 | . 17 . 37 1 18 4 . 16 1 1 27 Failed 74 | . 10 . 18 . 14 13 . 19 . . . Catastrophic 17 | . 1 . 1 . 1 7 . 7 . . . Database Lockouts 1 | . . . 1 . . . . . . . . Manual 96 | . 25 . 33 . 22 . . 16 . . . Terminals 118 | . 22 . 36 . 23 16 . 21 . . . Fabricators 6 | . . . . . . . . 6 . . . Repair Stations 1 | . . . . . . . . 1 . . . Recycling Units 17 | . 5 . 5 . 3 1 . 3 . . . Scanalyzers 23 | . . . 15 . 6 . . 2 . . . Garrison Access 2 | . . . . . . . . 2 . . . Terminal Hacks 55 | . 6 . 6 1 2 4 . 7 1 1 27 Record 11 | . . . . . . . . . . . 11 Part Schematic 9 | . . . . . . . . . . . 9 Robot Schematic 4 | . . . . . . . . . . . 4 Robot Analysis 4 | . 4 . . . . . . . . . . Prototype ID Bank 7 | . 1 . 2 . . 1 . . . . 3 Open Door 3 | . . . . 1 . . . . 1 1 . Level Access Points 1 | . . . . . . . . 1 . . . Branch Access Points 1 | . . . . . . . . 1 . . . Emergency Access Points 1 | . . . . . . 1 . . . . . Terminal Index 5 | . 1 . 1 . 1 1 . 1 . . . Locate Traps 1 | . . . . . . . . 1 . . . Maintenance Status 1 | . . . 1 . . . . . . . . Transport Status 1 | . . . . . . . . 1 . . . Hauler Manifests 4 | . . . 1 . 1 1 . 1 . . . Registered Components 2 | . . . 1 . . . . 1 . . . Fabricator Hacks 3 | . . . . . . . . 3 . . . Network Status 1 | . . . . . . . . 1 . . . Build 2 | . . . . . . . . 2 . . . Repair Station Hacks . | . . . . . . . . . . . . Recycling Unit Hacks 2 | . 1 . 1 . . . . . . . . Retrieve Components 2 | . 1 . 1 . . . . . . . . Scanalyzer 18 | . . . 13 . 5 . . . . . . Insert Component 7 | . . . 6 . 1 . . . . . . Analyze 7 | . . . 6 . 1 . . . . . . Retrieve Study 4 | . . . 1 . 3 . . . . . . Garrison Access Hacks . | . . . . . . . . . . . . Unauthorized Hacks 44 | . 10 . 17 . 11 . . 6 . . . Terminals 35 | . 8 . 15 . 9 . . 3 . . . Track 5 | . 1 . 2 . 2 . . . . . . Botnet 12 | . 2 . 5 . 2 . . 3 . . . Operators 2 | . 1 . 1 . . . . . . . . Skim 16 | . 4 . 7 . 5 . . . . . . Fabricators 1 | . . . . . . . . 1 . . . Haulers 1 | . . . . . . . . 1 . . . Repair Stations 1 | . . . . . . . . 1 . . . Patch 1 | . . . . . . . . 1 . . . Recycling Units 7 | . 2 . 2 . 2 . . 1 . . . Recyclers 1 | . . . . . . . . 1 . . . Tunnel 6 | . 2 . 2 . 2 . . . . . . Scanalyzers . | . . . . . . . . . . . . Garrison Access . | . . . . . . . . . . . . Data Cores Recovered 2 | . . . 1 . 1 . . . . . . Used 1 | . . . 1 . . . . . . . . Hacking Detections 49 | . 6 . 12 . 10 8 . 13 . . . Full Trace Events 6 | . 1 . 1 . 1 2 . 1 . . . Feedback Events . | . . . . . . . . . . . . Feedback Blocked . | . . . . . . . . . . . . Robot Schematics Acquired 4 | . . . . . . . . . . . 4 Robots Built 1 | . . . . . . . . 1 . . . Authchips . | . . . . . . . . . . . . Time 116 | . . . . . . . . 116 . . . Total Robot Build Rating 3 | . . . . . . . . 3 . . . Part Schematics Acquired 15 | . . . 5 . 1 . . . . . 9 Parts Built 2 | . . . . . . . . 2 . . . Authchips . | . . . . . . . . . . . . Time 42 | . . . . . . . . 42 . . . Total Part Build Rating 8 | . . . . . . . . 8 . . . Part Studies Acquired 4 | . . . 1 . 3 . . . . . . Parts Repaired . | . . . . . . . . . . . . Time . | . . . . . . . . . . . . Parts Recycled . | . . . . . . . . . . . . Recycled Matter . | . . . . . . . . . . . . Retrieved Matter . | . . . . . . . . . . . . Retrieved Components 13 | . 3 . 10 . . . . . . . . Parts Scanalyzed 7 | . . . 6 . 1 . . . . . . Part Schematics Acquired 6 | . . . 5 . 1 . . . . . . Parts Damaged . | . . . . . . . . . . . . Bothacking | -11 -10 -10 -9 -9 -8 -7 -7 -7 -7 -7 -7 ------------ Run | Yrd Mat Min Mat Min Mat Fac Was Fac Low Low Dat Used RIF Installer . | . . . . . . . . . . . . Robots Hacked 1 | . . . . . . 1 . . . . . Non-combat . | . . . . . . . . . . . . Combat 1 | . . . . . . 1 . . . . . Robot Hacks Applied 1 | . . . . . . 1 . . . . . parse_system 1 | . . . . . . 1 . . . . . Relay Couplers Released 3 | . . . . . 3 . . . . . . Machine Destruction 3 | . . . . . 3 . . . . . . Fabnet Peak Effective % . | . . . . . . . . . . . . Robots Rewired . | . . . . . . . . . . . . Allies Hacked . | . . . . . . . . . . . . Hacks Repelled . | . . . . . . . . . . . . Allies | -11 -10 -10 -9 -9 -8 -7 -7 -7 -7 -7 -7 -------- Run | Yrd Mat Min Mat Min Mat Fac Was Fac Low Low Dat Total Allies 22 | . . . . 1 . . 20 1 . . . Largest Group 20 | . . . . 1 1 . 20 15 . . . Highest-Rated Group 524 | . . . . 31 31 . 524 370 . . . Highest-Rated Ally 35 | . . . . 31 31 . 35 31 . . . Total Orders . | . . . . . . . . . . . . Ally Attacks 239 | . . . . 5 . . . 234 . . . Total Damage 3398 | . . . . 83 . . . 3315 . . . Kills 31 | . . . . . . . . 31 . . . Allies Corrupted 2 | . . . . . . . . 2 . . . Allies Melted 1 | . . . . . . . . 1 . . . Intel | -11 -10 -10 -9 -9 -8 -7 -7 -7 -7 -7 -7 ------- Run | Yrd Mat Min Mat Min Mat Fac Was Fac Low Low Dat Active Infowar (turns) 5354 | 66 349 . . . . . 215 1194 1414 1893 223 IFF 4261 | . . . . . . . 215 516 1414 1893 223 Seismic 415 | 66 349 . . . . . . . . . . T.N.C. 678 | . . . . . . . . 678 . . . Robot Analysis Total 4 | . 4 . . . . . . . . . . Derelict Logs Recovered 6 | . . 2 . 1 . . . . . 3 . Drone Launches . | . . . . . . . . . . . . Drone Recoveries . | . . . . . . . . . . . . Exploration | -11 -10 -10 -9 -9 -8 -7 -7 -7 -7 -7 -7 ------------- Run | Yrd Mat Min Mat Min Mat Fac Was Fac Low Low Dat Turns Passed 15668 | 174 1550 1115 1919 647 1690 820 680 2722 1790 1982 579 Spaces Moved 7221 | 81 737 453 1168 514 755 450 303 1266 622 689 183 Core 2 | 2 . . . . . . . . . . . Treads 5292 | 79 494 453 115 . 738 450 303 1266 622 689 83 Legs 100 | . . . . . . . . . . . 100 Wheels 1827 | . 243 . 1053 514 17 . . . . . . Hover . | . . . . . . . . . . . . Flight . | . . . . . . . . . . . . Fastest Speed 50 | 50 135 240 95 110 110 170 160 160 246 240 190 Average Speed 183 | 157 175 240 116 115 168 171 164 182 274 267 214 Slowest Speed 400 | 160 320 240 240 140 170 250 170 250 325 325 400 Overloaded Moves . | . . . . . . . . . . . . Propulsion Burnouts . | . . . . . . . . . . . . Robots Hopped . | . . . . . . . . . . . . Potential Cave-ins . | . . . . . . . . . . . . Cave-ins Triggered . | . . . . . . . . . . . . Exploration Rate (%) 70 | 6 93 98 94 98 78 18 90 42 74 76 78 Regions Visited 11 Branch Regions 5 Pre-discovered Areas 11 | . 2 1 5 . 2 . . . . . 1 Known Exits Taken 4 | . . . 1 1 1 . . 1 . . . Unknown Exits Taken 5 | 1 1 1 . . . . . . 1 1 . Scrap Searched 8 | . . . . 2 . . . . 3 3 . Spaces Dug 22 | . 1 . 2 . 9 . . 6 2 2 . Terrain Destroyed 184 | . 1 . 15 . 23 . . 88 4 53 . Melee 2 | . 1 . . . . . . . . 1 . Projectile 24 | . . . 4 . . . . 12 4 4 . AOE 158 | . . . 11 . 23 . . 76 . 48 . Terrain Rammed . | . . . . . . . . . . . . Walls Destroyed . | . . . . . . . . . . . . Machines Disabled . | . . . . . . . . . . . . Actions | -11 -10 -10 -9 -9 -8 -7 -7 -7 -7 -7 -7 --------- Run | Yrd Mat Min Mat Min Mat Fac Was Fac Low Low Dat Total 8652 | 104 886 464 1456 547 1051 480 445 1502 667 757 293 Wait 477 | . 21 . 69 11 184 . 91 60 1 5 35 Move 7211 | 80 736 452 1167 513 754 450 302 1265 621 688 183 Hop . | . . . . . . . . . . . . Pick Up 119 | 3 28 . 26 4 13 4 5 19 3 8 6 Fast Attach 27 | 8 . . 2 . 2 1 5 2 1 1 5 Attach 47 | . 6 . 10 1 2 2 . 13 5 . 8 Detach 7 | 1 . . . . . . . 4 1 . 1 Swap 150 | . 16 2 28 2 18 8 10 30 13 16 7 Drop 89 | 1 16 . 20 3 12 4 12 13 3 4 1 Fire 468 | 11 54 8 133 9 59 10 20 90 19 26 29 Melee 30 | . 3 . . . . . . . . 9 18 Ram . | . . . . . . . . . . . . Kick . | . . . . . . . . . . . . Crush 20 | . 5 2 1 . 7 1 . 4 . . . Escape Stasis 2 | . . . . . . . . 2 . . . Rewire 1 | . 1 . . . . . . . . . . Trap 4 | . . . . 4 . . . . . . . Miscellaneous . | . . . . . . . . . . . . Route ------- -11/Scrapyard -10/Materials (discovered 5 exits: *Mat x3 / [*Min x2]) -10/Mines (discovered 3 exits: *Mat x2 / [*Exi]) -9/Materials (discovered 4 exits: *Mat x3 / *Min) -9/Mines (discovered 2 exits: *Mat x2) -8/Materials (discovered 3 exits: *Fac x3) -7/Factory (discovered 4 exits: *Fac x2 / *Low x2) -7/Waste -7/Factory (discovered 8 exits: *Fac x4 / Sto x2 / *Low x2) -7/Lower Caves -7/Lower Caves (discovered 2 exits: *Fac / *Dat) -7/Data Miner (discovered 1 exit: [*Pro]) History --------- Turn | Location | Event 38 | -11/Scrapyard | Discovered new exit (range 16) 175 | -11/Scrapyard | Entered Materials 309 | -10/Materials | Build established: Mutant 422 | -10/Materials | Discovered new exit (range 6) 528 | -10/Materials | Discovered new exit (range 9) 675 | -10/Materials | Derelicts attacked the area 827 | -10/Materials | Discovered new exit (range 12) 937 | -10/Materials | Lost 3 parts (2n1w) 1033 | -10/Materials | Discovered new exit (range 16) 1120 | -10/Materials | Discovered new exit (range 14) 1192 | -10/Materials | Core integrity fell below 50% 1725 | -10/Materials | Entered Mines 1778 | -10/Mines | Deemed a non-threat by the Exiles lab entrance 1780 | -10/Mines | Discovered new exit (range 5) 1845 | -10/Mines | Learned location of 1 exit from Materials 2112 | -10/Mines | Learned Materials machine intel 2186 | -10/Mines | Discovered new exit (range 3) 2250 | -10/Mines | Discovered new exit (range 5) 2519 | -10/Mines | Learned location of Storage (-7) 2840 | -10/Mines | Entered Materials 2840 | -9/Materials | Evolved 2 slots: Propulsion x1, Utility x1 2841 | -9/Materials | Identified exit to Mines 2842 | -9/Materials | Loaded intel: 57 machine locations 3339 | -9/Materials | Lost 3 parts (1u2w) 3363 | -9/Materials | Discovered new exit (range 16) 3583 | -9/Materials | Central database locked down 3768 | -9/Materials | Lost 3 parts (1n2u) 4007 | -9/Materials | Discovered new exit (range 15) 4077 | -9/Materials | Learned Storage security intel 4179 | -9/Materials | Loaded intel: 1 repair station location 4215 | -9/Materials | Identified exit to Materials 4257 | -9/Materials | Learned Storage security intel 4262 | -9/Materials | Learned 4 Materials zone layouts 4300 | -9/Materials | Loaded intel: 5 trap records 4335 | -9/Materials | Learned location of Zion (-6) 4440 | -9/Materials | First assault squad dispatched 4759 | -9/Materials | Entered Mines 4952 | -9/Mines | Received a Rocket Launcher from a helpful Derelict 4990 | -9/Mines | Assembled infested the area 4992 | -9/Mines | Found a hidden stash of uninstalled traps 4995 | -9/Mines | Assisted by a Guerilla fighting off Assembled 5140 | -9/Mines | Met a Derelict who couldn't figure out how to use a Trap Extractor 5199 | -9/Mines | Received a Mining Laser from a helpful Derelict 5229 | -9/Mines | Core integrity fell below 50% 5384 | -9/Mines | Learned location of 1 exit from Proximity Caves 5406 | -9/Mines | Entered Materials 5406 | -8/Materials | Accompanied by 1 ally 5406 | -8/Materials | Evolved 2 slots: Propulsion x1, Utility x1 5412 | -8/Materials | Garrison activated, responded to threat 5595 | -8/Materials | Met 7R-MNS 6163 | -8/Materials | Discovered new exit (range 4) 6569 | -8/Materials | Discovered new exit (range 5) 6832 | -8/Materials | Learned Factory emergency access door positions 6886 | -8/Materials | Learned Storage stockpile data 6929 | -8/Materials | Learned 4 Recycling zone layouts 6987 | -8/Materials | Learned Factory emergency access door positions 7073 | -8/Materials | Identified exit to Factory 7096 | -8/Materials | Entered Factory 7096 | -7/Factory | Evolved 2 slots: Power x1, Utility x1 7097 | -7/Factory | Caught up to 7R-MNS 7097 | -7/Factory | Identified exit to Factory 7097 | -7/Factory | Identified exit to Lower Caves 7142 | -7/Factory | Allied Derelicts emerged from ambush trap array 7172 | -7/Factory | Garrison activated, responded to threat 7916 | -7/Factory | Sucked down chute 7916 | -7/Factory | Entered Waste 7917 | -7/Waste | Joined by Warlord forces that had cleared the area 7976 | -7/Waste | Found Prototype Launcher 7976 | -7/Waste | Identified Mni. Smartbomb Launcher 8160 | -7/Waste | Discovered new exit (range 15) 8356 | -7/Waste | Murdered 4 allies 8596 | -7/Waste | Entered Factory 8596 | -7/Factory | Accompanied by 15 allies 8938 | -7/Factory | Garrison activated, responded to threat 9410 | -7/Factory | Build established: Scavenger-Mutant 9696 | -7/Factory | Lost 3 allies 9796 | -7/Factory | First assault squad dispatched 9959 | -7/Factory | Garrison activated, responded to threat 10007 | -7/Factory | Cargo convoy interrupted 10026 | -7/Factory | Found Prototype Launcher 10026 | -7/Factory | Identified Rocket Array 10031 | -7/Factory | Found Rocket Array 10039 | -7/Factory | Found Rocket Array 10262 | -7/Factory | Fabricated M-28 Smith? 10318 | -7/Factory | Lost 4 parts (1p1n2w) 10323 | -7/Factory | Garrison activated, responded to threat 10358 | -7/Factory | Build established: Mutant 10489 | -7/Factory | Found Prototype Protection 10785 | -7/Factory | Identified exit to Storage 10797 | -7/Factory | Fabricated Med. Reflective Plating? 11318 | -7/Factory | Entered Lower Caves 12478 | -7/Lower Caves | Discovered new exit (range 15) 13108 | -7/Lower Caves | Entered another Lower Caves area 13328 | -7/Lower Caves | Learned Factory trap positions 14633 | -7/Lower Caves | Attracted the attention of an 0b10 outpost 14674 | -7/Lower Caves | Destroyed 7 combat bots 15024 | -7/Lower Caves | Discovered new exit (range 10) 15090 | -7/Lower Caves | Entered Data Miner 15090 | -7/Data Miner | Discovered new exit (range 6) 15136 | -7/Data Miner | Met Data Miner 15209 | -7/Data Miner | Learned location of Section 7 (-2) 15209 | -7/Data Miner | Acquired the access code to Warlord's prototype stash 15245 | -7/Data Miner | Received God Mode back door access code from Data Miner 15266 | -7/Data Miner | Destroyed Data Miner 15269 | -7/Data Miner | Data Conduit disabled 15309 | -7/Data Miner | Core integrity fell below 50% 15389 | -7/Data Miner | Lost 7 parts (2n3u2w) 15391 | -7/Data Miner | Found Prototype Device 15558 | -7/Data Miner | Core integrity fell below 20% 15593 | -7/Data Miner | Lost 3 parts (1p1n1w) 15602 | -7/Data Miner | Found Prototype Hackware 15605 | -7/Data Miner | Found Prototype Hackware 15608 | -7/Data Miner | Found Prototype Hackware 15612 | -7/Data Miner | Build established: Scavenger-Mutant 15669 | -7/Data Miner | Destroyed by Enhanced Grunt with Neutron Cannon Last Messages --------------- data lost. 15549_ Carbon-fiber Leg destroyed. 15555_ F-cell Engine destroyed. 15559_ Enhanced Grunt suffers critical hit (Burn). 15559_ Melted Prototype Storage. 15560_ Enhanced Grunt heat spikes uncontrollably. 15560_ Enhanced Grunt overheating. 15562_ Beamcaster destroyed. 15564_ Enhanced Grunt heat short circuits Adv. Heat Sink. 15567_ Enhanced Grunt critical meltdown. 15567_ Enh. Flexi-carbon Leg melted. 15567_ Antimatter Reactor melted. 15572_ Acquired Enh. Flexi-carbon Leg. 15574_ Acquired 25 matter. 15602_ Acquired Prototype Hackware. 15615_ Acquired Gravmag Array. 15624_ Acquired 10 matter. Map ----- +----------------------------------------------------+ | | | | | | | | | | | | | | | | | | | | | | | | | | | | | | | | | | | | | ???????????????????????????????????? | | ???????????????????????????????????? | | ???????????????????????????????????? | | ???????????????????????????????????? | | ???????????????????????????????????? | | ????#################??????????????# | | ???##"% g """""""######????????## | | ??##" " " @" """"""""########## | | ??#" """""""" | | ??# """""" | | ??# """""" | | ??# """"" | | ??# " "" * | | ?## "%"" """""""""""" | | ?#" """" """"########## | | ?##" """" """""###????????? | | ??###"""""""" "#####??????????? | | ????########"## "#??????????????? | | ???????????#"### "#??????????????? | | ???????????#"### "#??????????????? | | ???????????#"## "#??????????????? | | ???????????#"## "#??????????????? | | ?????????????# "#??????????????? | | ?????????????### "#??????????????? | | ???????????????# "##?????????????? | | ??????????????## ""#?????????????? | | ???????????#?## ""#?????????????? | | ??????????##"#"X ""#?????????????? | | ??????????""""" "####??????????? | | ??????????""""" X"""""??????????? | | ??????????##"#"X "##"???????????? | | ???????????#?## X""""#??????????? | +----------------------------------------------------+ Best States ------------- Heat Dissipation 72 Energy Generation 33 Energy Capacity 1200 Matter Stores 300 Matter Capacity 300 Sight Range 16 Terrain Scan Density 10 Base Temperature (-) 100 Armor Coverage 225 Core Shielding 20 Evasion (%) 41 Core Analysis 6 Armor Integrity Analysis 30 Recoil Reduction 4 Item Schematics ----------------- Arm. Wheel | -9/Materials | Scanalyzed Lrg. Storage Unit | -9/Materials | Scanalyzed Cryofiber Web | -9/Materials | Scanalyzed Trap Extractor | -9/Materials | Scanalyzed Datajack | -9/Materials | Scanalyzed Cmb. Airjet | -8/Materials | Scanalyzed Combat Drone Bay | -7/Data Miner | Free Lgt. Regenerative Plating | -7/Data Miner | Free Multireflex Exoskeleton | -7/Data Miner | Free Gravity Neutralizer | -7/Data Miner | Free Imp. Lightning Gun | -7/Data Miner | Free Nuclear Pulse Array | -7/Data Miner | Free Imp. Dynamic Insulation System | -7/Data Miner | Free Lrn. Proton Cannon | -7/Data Miner | Free Imp. Reaction Control System | -7/Data Miner | Free Robot Schematics ------------------ M-14 Sweeper | -7/Data Miner | Free B-48 Gladiator | -7/Data Miner | Free X-62 Marksman | -7/Data Miner | Free L-41 Fighter | -7/Data Miner | Free Fabricated ------------ M-28 Smith | x1 | -7/Factory | Preloaded Med. Reflective Plating | x2 | -7/Factory | Preloaded Repaired ---------- Nothing Studied --------- Arm. Wheel | -9/Materials | Hacked Rocket Launcher | -8/Materials | Hacked Spread Laser | -8/Materials | Hacked EMP Blaster | -8/Materials | Hacked Alien Tech Used ----------------- None Achievements -------------- None Challenges ------------ None Game ------ Seed SixPhaseDisintegrator Manual? 0 Play Time 01:24:42 Cumulative 516.3 hours Start 2025.11.05 @ 23:28:44 End 2025.11.06 @ 01:15:18 Sessions 1 Manual Loads 0 Difficulty Rogue Special Mode None Game No. 281 Rogue 281 Adventurer 0 Explorer 0 Win Type - Total 22 Types 13/1/5/1/0/0/0/1/1/0 Lore% 94 Gallery% 88 Achievement% 79 Wizard Run 0 Options --------- Layout 2 ASCII 0 Keyboard 1 Movement Vi Keybinds 0 Fullscreen 1 Font 28/Terminus Map View 50x52 Zoom Use 0% Tactical HUD 1 Map Filters NONE Filters NONE Steam 1 RUN: 1f7adc05-f54f-4b2e-95ab-642edf0e8437